fUSD/lending_fUSD_20260115
["ID","MTS","AMOUNT","RATE_DAILY","PERIOD"]
[402035224,1768488663902,-1177.91,0.00041095,30]
[402035225,1768488663913,-567.14,0.00041095,30]
[402035226,1768488663923,-602.38,0.00041095,30]
[402035227,1768488663932,-741.487047,0.00041095,120]
[402035228,1768488663942,-2242.4,0.00041095,30]
[402035229,1768488663952,-741.487047,0.00041095,120]
[402035230,1768488663962,-500.0,0.00041095,30]
[402035231,1768488663971,-692.93,0.00041095,30]
[402035232,1768488663981,-741.487047,0.00041095,120]
[402035233,1768488663991,-500.0,0.00041095,30]
[402035234,1768488664000,-500.0,0.00041095,30]
[402035235,1768488664010,-4029.16,0.00041095,30]
[402035236,1768488664020,-381.04782502,0.00041095,30]
[402035237,1768488664031,-500.0,0.00041095,30]
[402035238,1768488664042,-549.02,0.00041095,30]
[402035239,1768488664055,-500.0,0.00041095,30]
[402035240,1768488664065,-674.28,0.00041095,30]
[402035241,1768488664075,-500.0,0.00041095,30]
[402035242,1768488664085,-500.0,0.00041095,30]
[402035243,1768488664097,-1157.4,0.00041095,30]
[402035244,1768488664107,-151.0,0.00041095,90]
[402035245,1768488664117,-215.862117,0.00041095,90]
[402035246,1768488664126,-538.61,0.00041095,30]
[402035247,1768488664140,-500.0,0.00041095,30]
[402035248,1768488664149,-500.0,0.00041095,30]
[402035249,1768488664159,-513.64,0.00041095,30]
[402035250,1768488664169,-500.0,0.00041095,30]
[402035251,1768488664178,-151.0,0.00041095,120]
[402035252,1768488664188,-151.0,0.00041095,120]
[402035253,1768488664197,-151.0,0.00041095,120]
[402035254,1768488664206,-151.0,0.00041095,120]
[402035255,1768488664216,-500.0,0.00041095,30]
[402035256,1768488664226,-151.0,0.00041095,120]
[402035257,1768488664235,-500.0,0.00041095,30]
[402035258,1768488664245,-151.0,0.00041095,120]
[402035259,1768488664255,-500.0,0.00041095,30]
[402035260,1768488664265,-151.0,0.00041095,120]
[402035261,1768488664274,-151.0,0.00041095,120]
[402035262,1768488664285,-268.836202,0.00041095,120]
[402035263,1768488664294,-500.0,0.00041095,30]
[402035264,1768488664305,-151.0,0.00041095,120]
[402035265,1768488664314,-268.836202,0.00041095,120]
[402035266,1768488664324,-268.836202,0.00041095,120]
[402035267,1768488664338,-500.0,0.00041095,30]
[402035268,1768488664348,-268.836202,0.00041095,120]
[402035269,1768488664358,-651.55,0.00041095,30]
[402035270,1768488664369,-2027.4,0.00041095,30]
[402035271,1768488664378,-268.836202,0.00041095,120]
[402035272,1768488664389,-268.836202,0.00041095,120]
[402035273,1768488664399,-500.0,0.00041095,30]
[402035274,1768488664409,-268.836202,0.00041095,120]
[402035275,1768488664418,-151.0,0.00041095,120]
[402035276,1768488664428,-268.836202,0.00041095,120]
[402035277,1768488664438,-152.474668,0.00041095,120]
[402035278,1768488664447,-268.836202,0.00041095,120]
[402035279,1768488664457,-500.0,0.00041095,30]
[402035280,1768488664467,-500.0,0.00041095,120]
[402035281,1768488664476,-268.836202,0.00041095,120]
[402035282,1768488664486,-505.82,0.00041095,30]
[402035283,1768488664496,-268.836202,0.00041095,120]
[402035284,1768488664506,-151.0,0.00041095,120]
[402035285,1768488664515,-268.836202,0.00041095,120]
[402035286,1768488664527,-151.0,0.00041095,120]
[402035287,1768488664537,-290.94103,0.00041095,120]
[402035288,1768488664546,-290.94103,0.00041095,120]
[402035289,1768488664557,-1546.36,0.00041095,30]
[402035290,1768488664566,-500.0,0.00041095,30]
[402035291,1768488664576,-290.94103,0.00041095,120]
[402035292,1768488664586,-290.94103,0.00041095,120]
[402035293,1768488664599,-517.78963277,0.00041095,30]
[402035294,1768488664609,-942.35,0.00041095,30]
[402035295,1768488664622,-675.33,0.00041095,30]
[402035296,1768488664632,-713.23,0.00041095,30]
[402035297,1768488664641,-578.01,0.00041095,30]
[402035298,1768488664653,-811.33,0.00041095,30]
[402035299,1768488664662,-290.94103,0.00041095,120]
[402035300,1768488664672,-500.0,0.00041095,14]
[402035301,1768488664682,-290.94103,0.00041095,120]
[402035302,1768488664693,-491.67168394,0.00041095,30]
[402035303,1768488664703,-500.0,0.00041095,30]
[402035304,1768488664713,-290.94103,0.00041095,120]
[402035305,1768488664724,-151.0,0.00041095,120]
[402035306,1768488664734,-1021.47,0.00041095,30]
[402035307,1768488664744,-290.941027,0.00041095,120]
[402035308,1768488664753,-151.0,0.00041095,120]
[402035309,1768488664763,-353.61655618,0.00041095,30]
[402035310,1768488664773,-679.88,0.00041095,30]
[402035311,1768488664783,-500.0,0.00041095,30]
[402035312,1768488664793,-500.0,0.00041095,30]
[402035313,1768488664804,-500.0,0.00041095,30]
[402035314,1768488664814,-1723.27,0.00041095,30]
[402035315,1768488664824,-3141.36421956,0.00041095,120]
[402035316,1768488665767,-609.18503344,0.00041095,120]
[402035317,1768488665777,-354.53785537,0.00041095,30]
[402035318,1768488665789,-145.46214463,0.00041095,30]
[402035319,1768488665803,-1245.53822768,0.00041095,120]
[402035320,1768488665816,-2505.01102532,0.00041095,120]
[402035321,1768488665826,-517.91,0.00041095,30]
[402035322,1768488665836,-500.0,0.00041095,30]
[402035323,1768488665848,-1842.966545,0.00041095,120]
[402035324,1768488665858,-547.56,0.00041095,30]
[402035325,1768488665868,-1014.52,0.00041095,30]
[402035326,1768488665878,-1842.966545,0.00041095,120]
[402035327,1768488665888,-1431.97,0.00041095,14]
[402035328,1768488665899,-500.0,0.00041095,30]
[402035329,1768488665909,-954.61,0.00041095,30]
[402035330,1768488665919,-1113.043201,0.00041095,120]
[402035331,1768488665929,-3750.549253,0.00041095,120]
[402035332,1768488665940,-1113.043201,0.00041095,120]
[402035333,1768488665950,-3750.549253,0.00041095,120]
[402035334,1768488665960,-1842.966545,0.00041095,120]
[402035335,1768488665969,-500.0,0.00041095,30]
[402035336,1768488665979,-392.84333306,0.00041095,120]
[402035337,1768488666094,-387.31617711,0.00041095,120]
[402035338,1768488667819,-427.49979718,0.00024818,2]
[402035339,1768488667831,-773.50020282,0.00024818,2]
[402035340,1768488667842,-1062.80703483,0.00041095,120]
[402035341,1768488667852,-500.0,0.00041095,30]
[402035342,1768488667861,-1113.043201,0.00041095,120]
[402035343,1768488667872,-3750.549253,0.00041095,120]
[402035344,1768488667882,-500.0,0.00041095,30]
[402035345,1768488667892,-1113.043201,0.00041095,120]
[402035346,1768488667903,-3750.549253,0.00041095,120]
[402035347,1768488667914,-1842.966545,0.00041095,120]
[402035348,1768488667924,-1842.966545,0.00041095,120]
[402035349,1768488667935,-749.64,0.00041095,30]
[402035350,1768488667944,-500.0,0.00041095,30]
[402035351,1768488667953,-1113.043201,0.00041095,120]
[402035352,1768488667963,-449.78716027,0.00041095,120]
[402035353,1768488667975,-3300.76209273,0.00041095,120]
[402035354,1768488667985,-151.0,0.00041095,120]
[402035355,1768488667994,-500.0,0.00041095,30]
[402035356,1768488668007,-3128.86235092,0.00041095,120]
[402035357,1768488668018,-621.68690008,0.00041095,120]
[402035358,1768488668028,-151.0,0.00041095,120]
[402035359,1768488668038,-297.47421795,0.00041095,120]
[402035360,1768488668251,-815.56898305,0.00041095,120]
[402035361,1768488668262,-1842.966545,0.00041095,120]
[402035362,1768488668273,-1842.966541,0.00041095,120]
[402035363,1768488668283,-500.0,0.00041095,30]
[402035364,1768488668293,-151.0,0.00041095,120]
[402035365,1768488668304,-1113.043201,0.00041095,120]
[402035366,1768488668315,-151.0,0.00041095,120]
[402035367,1768488668325,-725.61,0.00041095,30]
[402035368,1768488668335,-1113.043201,0.00041095,120]
[402035369,1768488668347,-593.269728,0.00041095,120]
[402035370,1768488668358,-798.15,0.00041095,30]
[402035371,1768488668368,-593.269728,0.00041095,120]
[402035372,1768488668378,-1795.543473,0.00041095,120]
[402035373,1768488668388,-961.74,0.00041095,30]
[402035374,1768488668398,-1795.543473,0.00041095,120]
[402035375,1768488668408,-151.0,0.00041095,120]
[402035376,1768488668418,-643.516205,0.00041095,120]
[402035377,1768488668428,-211.524336,0.00041095,120]
[402035378,1768488668438,-827.99,0.00041095,30]
[402035379,1768488668449,-643.516205,0.00041095,120]
[402035380,1768488668459,-593.269728,0.00041095,120]
[402035381,1768488668469,-1991.31,0.00041095,30]
[402035382,1768488668479,-593.269728,0.00041095,120]
[402035383,1768488668489,-1795.543473,0.00041095,120]
[402035384,1768488668499,-656.43,0.00041095,30]
[402035385,1768488668509,-1740.58,0.00041095,30]
[402035386,1768488668519,-1795.543473,0.00041095,120]
[402035387,1768488668528,-239.337724,0.00041095,90]
[402035388,1768488668541,-749.83,0.00041095,30]
[402035389,1768488668552,-643.516205,0.00041095,120]
[402035390,1768488668562,-239.337724,0.00041095,90]
[402035391,1768488668572,-820.49,0.00041095,30]
[402035392,1768488668582,-593.269728,0.00041095,120]
[402035393,1768488668592,-643.516205,0.00041095,120]
[402035394,1768488668603,-593.269728,0.00041095,120]
[402035395,1768488668613,-1795.543473,0.00041095,120]
[402035396,1768488668626,-500.0,0.00041095,30]
[402035397,1768488668636,-1795.543473,0.00041095,120]
[402035398,1768488668647,-676.62,0.00041095,30]
[402035399,1768488668657,-643.516205,0.00041095,120]
[402035400,1768488668738,-593.269728,0.00041095,120]
[402035401,1768488668748,-643.516205,0.00041095,120]
[402035402,1768488668758,-510.48,0.00041095,30]
[402035403,1768488668768,-593.269731,0.00041095,120]
[402035404,1768488668777,-1795.543473,0.00041095,120]
[402035405,1768488668788,-500.0,0.00041095,30]
[402035406,1768488668797,-1795.543464,0.00041095,120]
[402035407,1768488668807,-643.516205,0.00041095,120]
[402035408,1768488668816,-643.516197,0.00041095,120]
[402035409,1768488668826,-204.48740917,0.00041095,30]
[402035410,1768488668836,-500.0,0.00041095,30]
[402035411,1768488668846,-500.0,0.00041095,30]
[402035412,1768488668856,-300.0,0.00041095,2]
[402035413,1768488668866,-1204.64,0.00041095,30]
[402035414,1768488668875,-500.0,0.00041095,30]
[402035415,1768488668885,-500.0,0.00041095,30]
[402035416,1768488668894,-500.0,0.00041095,30]
[402035417,1768488668904,-2193.75,0.00041095,30]
[402035418,1768488668914,-239.337724,0.00041095,90]
[402035419,1768488668925,-151.0,0.00041095,120]
[402035420,1768488668935,-151.0,0.00041095,120]
[402035421,1768488668945,-239.337724,0.00041095,90]
[402035422,1768488668955,-564.991511,0.00041095,120]
[402035423,1768488668965,-500.0,0.00041095,30]
[402035424,1768488668974,-151.0,0.00041095,120]
[402035425,1768488668984,-564.991511,0.00041095,120]
[402035426,1768488668994,-151.0,0.00041095,120]
[402035427,1768488669003,-239.337724,0.00041095,90]
[402035428,1768488669013,-1772.99,0.00041095,30]
[402035429,1768488669022,-239.337724,0.00041095,90]
[402035430,1768488669031,-564.991511,0.00041095,120]
[402035431,1768488669041,-500.0,0.00041095,30]
[402035432,1768488669050,-564.991511,0.00041095,120]
[402035433,1768488669059,-500.0,0.00041095,30]
[402035434,1768488669068,-500.0,0.00041095,30]
[402035435,1768488669082,-239.337724,0.00041095,90]
[402035436,1768488669096,-500.0,0.00041095,30]
[402035437,1768488669105,-500.0,0.00041095,30]
[402035438,1768488669115,-239.337732,0.00041095,90]
[402035439,1768488669124,-2105.76,0.00041095,30]
[402035440,1768488669134,-990.25,0.00041095,30]
[402035441,1768488669143,-1540.86,0.00041095,30]
[402035442,1768488669153,-564.991511,0.00041095,120]
[402035443,1768488669162,-1198.5,0.00041095,30]
[402035444,1768488669172,-564.991511,0.00041095,120]
[402035445,1768488669182,-500.0,0.00041095,30]
[402035446,1768488669191,-564.991511,0.00041095,120]
[402035447,1768488669201,-564.991517,0.00041095,120]
[402035448,1768488669210,-500.0,0.00041095,30]
[402035449,1768488669220,-1134.69,0.00041095,30]
[402035450,1768488669230,-500.0,0.00041095,30]
[402035451,1768488669240,-500.0,0.00041095,30]
[402035452,1768488669249,-500.0,0.00041095,16]
[402035453,1768488669259,-500.0,0.00041095,30]
[402035454,1768488669269,-530.15609667,0.00041095,30]
[402035455,1768488669278,-500.0,0.00041095,30]
[402035456,1768488669288,-500.0,0.00041095,30]
[402035457,1768488669298,-1134.25,0.00041095,30]
[402035458,1768488669308,-677.36,0.00041095,30]
[402035459,1768488669318,-1243.71,0.00041095,30]
[402035460,1768488669328,-622.75,0.00041095,30]
[402035461,1768488669338,-1093.73,0.00041095,30]
[402035462,1768488669349,-500.0,0.00041095,30]
[402035463,1768488669359,-500.0,0.00041095,30]
[402035464,1768488669369,-500.0,0.00041095,30]
[402035465,1768488669379,-500.0,0.00041095,30]
[402035466,1768488669388,-176.849444,0.00041095,120]
[402035467,1768488669398,-500.0,0.00041095,30]
[402035468,1768488669407,-176.849444,0.00041095,120]
[402035469,1768488669416,-500.0,0.00041095,30]
[402035470,1768488669426,-500.0,0.00041095,30]
[402035471,1768488669435,-500.0,0.00041095,30]
[402035472,1768488669444,-176.849444,0.00041095,120]
[402035473,1768488669453,-176.849444,0.00041095,120]
[402035474,1768488669463,-561.22,0.00041095,30]
[402035475,1768488669472,-500.0,0.00041095,30]
[402035476,1768488669482,-176.849444,0.00041095,120]
[402035477,1768488669491,-176.849444,0.00041095,120]
[402035478,1768488669501,-584.89,0.00041095,30]
[402035479,1768488669511,-1436.83,0.00041095,30]
[402035480,1768488669520,-176.849444,0.00041095,120]
[402035481,1768488669530,-1474.86,0.00041095,30]
[402035482,1768488669539,-176.849434,0.00041095,120]
[402035483,1768488669548,-587.9111554,0.00041095,30]
[402035484,1768488669558,-1265.38,0.00041095,30]
[402035485,1768488669567,-500.0,0.00041095,30]
[402035486,1768488669577,-500.0,0.00041095,30]
[402035487,1768488669587,-200.78695563,0.00041095,30]
[402035488,1768488669596,-560.28,0.00041095,30]
[402035489,1768488669606,-500.0,0.00041095,30]
[402035490,1768488669617,-667.6,0.00041095,30]
[402035491,1768488669627,-500.0,0.00041095,30]
[402035492,1768488669636,-1528.84,0.00041095,30]
[402035493,1768488669647,-500.0,0.00041095,30]
[402035494,1768488669657,-500.0,0.00041095,30]
[402035495,1768488669666,-1224.17,0.00041095,30]
[402035496,1768488669675,-500.0,0.00041095,30]
[402035497,1768488669687,-805.58,0.00041095,30]
[402035498,1768488669696,-500.0,0.00041095,30]
[402035499,1768488669705,-1221.51,0.00041095,30]
[402035500,1768488669714,-647.62,0.00041095,30]
[402035501,1768488669723,-500.0,0.00041095,30]
[402035502,1768488669733,-500.0,0.00041095,30]
[402035503,1768488669743,-500.0,0.00041095,30]
[402035504,1768488669752,-500.0,0.00041095,30]
[402035505,1768488669761,-574.04,0.00041095,30]
[402035506,1768488669770,-500.0,0.00041095,30]
[402035507,1768488669779,-500.0,0.00041095,30]
[402035508,1768488669788,-500.0,0.00041095,30]
[402035509,1768488669797,-1236.02,0.00041095,30]
[402035510,1768488669806,-500.0,0.00041095,30]
[402035511,1768488669815,-500.0,0.00041095,30]
[402035512,1768488669824,-500.0,0.00041095,30]
[402035513,1768488669834,-500.0,0.00041095,30]
[402035514,1768488669844,-1291.13,0.00041095,30]
[402035515,1768488669854,-500.0,0.00041095,30]
[402035516,1768488669863,-500.0,0.00041095,30]
[402035517,1768488669873,-3310.92,0.00041095,30]
[402035518,1768488669881,-500.0,0.00041095,30]
[402035519,1768488669891,-500.0,0.00041095,10]
[402035520,1768488669900,-500.0,0.00041095,30]
[402035521,1768488669909,-500.0,0.00041095,30]
[402035522,1768488669918,-611.45,0.00041095,30]
[402035523,1768488669927,-513.55782472,0.00041095,30]
[402035524,1768488669937,-500.0,0.00041095,30]
[402035525,1768488669946,-1275.06,0.00041095,30]
[402035526,1768488669955,-500.0,0.00041095,30]
[402035527,1768488669964,-500.0,0.00041095,30]
[402035528,1768488669974,-500.0,0.00041095,30]
[402035529,1768488669984,-500.0,0.00041095,30]
[402035530,1768488669993,-1003.4,0.00041095,30]
[402035531,1768488670002,-2763.15,0.00041095,30]
[402035532,1768488670011,-500.0,0.00041095,30]
[402035533,1768488670020,-500.0,0.00041095,30]
[402035534,1768488670029,-500.0,0.00041095,30]
[402035535,1768488670039,-1536.58,0.00041095,30]
[402035536,1768488670048,-500.0,0.00041095,30]
[402035537,1768488670058,-1050.81,0.00041095,30]
[402035538,1768488670067,-954.23,0.00041095,30]
[402035539,1768488670076,-500.0,0.00041095,30]
[402035540,1768488670086,-500.0,0.00041095,30]
[402035541,1768488670097,-970.47,0.00041095,30]
[402035542,1768488670107,-500.0,0.00041095,30]
[402035543,1768488670117,-375.34047086,0.00041095,30]
[402035544,1768488670126,-500.0,0.00041095,30]
[402035545,1768488670135,-964.9,0.00041095,30]
[402035546,1768488670144,-1993.6,0.00041095,30]
[402035547,1768488670153,-3489.66,0.00041095,30]
[402035548,1768488670162,-727.15,0.00041095,30]
[402035549,1768488670171,-500.0,0.00041095,5]
[402035550,1768488670181,-1004.2,0.00041095,30]
[402035551,1768488670200,-872.64,0.00041095,30]
[402035552,1768488670219,-500.0,0.00041095,30]
[402035553,1768488670239,-538.35,0.00041095,30]
[402035554,1768488670248,-500.0,0.00041095,30]
[402035555,1768488670258,-500.0,0.00041095,30]
[402035556,1768488670267,-500.0,0.00041095,30]
[402035557,1768488670276,-500.0,0.00041095,30]
[402035558,1768488670286,-500.0,0.00041095,30]
[402035559,1768488670295,-500.0,0.00041095,30]
[402035560,1768488670304,-500.0,0.00041095,30]
[402035561,1768488670313,-500.0,0.00041095,30]
[402035562,1768488670322,-500.0,0.00041095,30]
[402035563,1768488670332,-1603.77,0.00041095,30]
[402035564,1768488670341,-1367.37,0.00041095,30]
[402035565,1768488670352,-1601.76,0.00041095,30]
[402035566,1768488670361,-500.0,0.00041095,30]
[402035567,1768488670371,-1021.12,0.00041095,30]
[402035568,1768488670380,-4117.53,0.00041095,30]
[402035569,1768488670390,-2410.67,0.00041095,30]
[402035570,1768488670399,-515.04,0.00041095,30]
[402035571,1768488670408,-1029.31,0.00041095,30]
[402035572,1768488670418,-500.0,0.00041095,30]
[402035573,1768488670427,-500.0,0.00041095,30]
[402035574,1768488670436,-614.65,0.00041095,30]
[402035575,1768488670445,-500.0,0.00041095,30]
[402035576,1768488670455,-500.0,0.00041095,30]
[402035577,1768488670464,-500.0,0.00041095,30]
[402035578,1768488670474,-725.17,0.00041095,30]
[402035579,1768488670484,-3514.96,0.00041095,30]
[402035580,1768488670494,-500.0,0.00041095,30]
[402035581,1768488670504,-505.54,0.00041095,30]
[402035582,1768488670514,-500.0,0.00041095,30]
[402035583,1768488670524,-500.0,0.00041095,30]
[402035584,1768488670533,-500.0,0.00041095,30]
[402035585,1768488670543,-268.59861952,0.00041095,30]
[402035586,1768488670552,-1727.77,0.00041095,30]
[402035587,1768488670562,-500.0,0.00041095,30]
[402035588,1768488670571,-626.49,0.00041095,120]
[402035589,1768488670581,-976.54,0.00041095,30]
[402035590,1768488670590,-500.0,0.00041095,2]
[402035591,1768488670602,-151.0,0.00041095,10]
[402035592,1768488670614,-819.43,0.00041095,30]
[402035593,1768488670624,-712.77,0.00041095,30]
[402035594,1768488670633,-151.0,0.00041095,120]
[402035595,1768488670643,-151.0,0.00041095,10]
[402035596,1768488670653,-151.0,0.00041095,120]
[402035597,1768488670664,-979.81,0.00041095,30]
[402035598,1768488670673,-504.39,0.00041095,30]
[402035599,1768488670683,-500.0,0.00041095,30]
[402035600,1768488670693,-500.0,0.00041095,30]
[402035601,1768488670703,-151.0,0.00041095,10]
[402035602,1768488670713,-151.0,0.00041095,10]
[402035603,1768488670723,-1181.82,0.00041095,30]
[402035604,1768488670732,-500.0,0.00041095,30]
[402035605,1768488670743,-500.0,0.00041095,30]
[402035606,1768488670752,-151.0,0.00041095,10]
[402035607,1768488670762,-1335.08,0.00041095,30]
[402035608,1768488670774,-151.0,0.00041095,10]
[402035609,1768488670783,-510.16653655,0.00041095,30]
[402035610,1768488670792,-500.0,0.00041095,14]
[402035611,1768488670802,-500.0,0.00041095,30]
[402035612,1768488670812,-1051.23,0.00041095,30]
[402035613,1768488670822,-500.0,0.00041095,30]
[402035614,1768488670831,-938.93,0.00041095,30]
[402035615,1768488670841,-548.42,0.00041095,30]
[402035616,1768488670856,-500.0,0.00041095,30]
[402035617,1768488670867,-541.93,0.00041095,30]
[402035618,1768488670877,-500.0,0.00041095,30]
[402035619,1768488670886,-1687.1,0.00041095,30]
[402035620,1768488670896,-500.0,0.00041095,30]
[402035621,1768488670905,-692.24,0.00041095,30]
[402035622,1768488670915,-1435.52,0.00041095,30]
[402035623,1768488670925,-500.7168109,0.00041095,3]
[402035624,1768488670934,-500.0,0.00041095,30]
[402035625,1768488670943,-500.0,0.00041095,30]
[402035626,1768488670953,-1259.51,0.00041095,30]
[402035627,1768488670963,-516.20864704,0.00041095,30]
[402035628,1768488670972,-500.0,0.00041095,30]
[402035629,1768488670981,-500.0,0.00041095,30]
[402035630,1768488670991,-2743.54,0.00041095,30]
[402035631,1768488671000,-500.0,0.00041095,30]
[402035632,1768488671010,-1690.77,0.00041095,30]
[402035633,1768488671019,-667.41,0.00041095,30]
[402035634,1768488671028,-500.0,0.00041095,30]
[402035635,1768488671038,-542.4,0.00041095,30]
[402035636,1768488671047,-763.99,0.00041095,30]
[402035637,1768488671057,-500.0,0.00041095,30]
[402035638,1768488671067,-500.0,0.00041095,30]
[402035639,1768488671076,-500.0,0.00041095,30]
[402035640,1768488671085,-500.0,0.00041095,30]
[402035641,1768488671097,-500.0,0.00041095,30]
[402035642,1768488671107,-834.95,0.00041095,30]
[402035643,1768488671116,-500.0,0.00041095,30]
[402035644,1768488671125,-500.0,0.00041095,30]
[402035645,1768488671135,-500.0,0.00041095,30]
[402035646,1768488671145,-500.0,0.00041095,30]
[402035647,1768488671156,-1129.89,0.00041095,30]
[402035648,1768488671165,-1906.6,0.00041095,30]
[402035649,1768488671175,-1079.02,0.00041095,30]
[402035650,1768488671184,-500.0,0.00041095,30]
[402035651,1768488671194,-500.0,0.00041095,30]
[402035652,1768488671203,-500.0,0.00041095,30]
[402035653,1768488671213,-500.0,0.00041095,30]
[402035654,1768488671222,-500.0,0.00041095,30]
[402035655,1768488671232,-1347.08,0.00041095,30]
[402035656,1768488671241,-500.0,0.00041095,30]
[402035657,1768488671250,-500.0,0.00041095,30]
[402035658,1768488671259,-1579.79,0.00041095,30]
[402035659,1768488671269,-300.0,0.00041095,2]
[402035660,1768488671278,-580.48,0.00041095,30]
[402035661,1768488671288,-151.0,0.00041095,120]
[402035662,1768488671297,-153.578715,0.00041095,120]
[402035663,1768488671306,-500.0,0.00041095,30]
[402035664,1768488671316,-500.0,0.00041095,30]
[402035665,1768488671326,-500.0,0.00041095,30]
[402035666,1768488671335,-891.4,0.00041095,30]
[402035667,1768488671345,-683.3,0.00041095,30]
[402035668,1768488671354,-500.0,0.00041095,30]
[402035669,1768488671364,-500.0,0.00041095,30]
[402035670,1768488671373,-957.93,0.00041095,30]
[402035671,1768488671383,-1071.31,0.00041095,30]
[402035672,1768488671392,-811.4,0.00041095,30]
[402035673,1768488671401,-500.0,0.00041095,30]
[402035674,1768488671411,-501.41026211,0.00041095,30]
[402035675,1768488671421,-1733.3,0.00041095,30]
[402035676,1768488671430,-500.0,0.00041095,30]
[402035677,1768488671440,-1730.87,0.00041095,30]
[402035678,1768488671449,-419.19880105,0.00041095,30]
[402035679,1768488671459,-1348.23,0.00041095,30]
[402035680,1768488671469,-151.0,0.00041095,120]
[402035681,1768488671479,-230.765151,0.00041095,120]
[402035682,1768488671490,-1073.1,0.00041095,30]
[402035683,1768488671501,-585.42,0.00041095,30]
[402035684,1768488671512,-1030.96,0.00041095,30]
[402035685,1768488671522,-500.0,0.00041095,30]
[402035686,1768488671532,-535.68,0.00041095,30]
[402035687,1768488671542,-500.0,0.00041095,30]
[402035688,1768488671553,-579.13439739,0.00041095,30]
[402035689,1768488671563,-638.86,0.00041095,30]
[402035690,1768488671574,-632.92,0.00041095,30]
[402035691,1768488671585,-500.0,0.00041095,30]
[402035692,1768488671595,-500.0,0.00041095,30]
[402035693,1768488671606,-500.0,0.00041095,30]
[402035694,1768488671617,-804.62,0.00041095,30]
[402035695,1768488671629,-151.0,0.00041095,30]
[402035696,1768488671638,-504.81,0.00041095,30]
[402035697,1768488671649,-151.0,0.00041095,120]
[402035698,1768488671660,-151.0,0.00041095,30]
[402035699,1768488671670,-151.0,0.00041095,120]
[402035700,1768488671680,-1106.51,0.00041095,30]
[402035701,1768488671691,-521.3,0.00041095,30]
[402035702,1768488671700,-500.0,0.00041095,30]
[402035703,1768488671710,-500.0,0.00041095,30]
[402035704,1768488671720,-2361.46,0.00041095,30]
[402035705,1768488671730,-500.0,0.00041095,30]
[402035706,1768488671740,-204.04269117,0.00041095,30]
[402035707,1768488671749,-599.56,0.00041095,30]
[402035708,1768488671759,-500.0,0.00041095,30]
[402035709,1768488671770,-500.0,0.00041095,30]
[402035710,1768488671780,-940.09,0.00041095,30]
[402035711,1768488671789,-1372.94,0.00041095,30]
[402035712,1768488671799,-500.0,0.00041095,30]
[402035713,1768488671808,-559.97196882,0.00041095,30]
[402035714,1768488671818,-514.92,0.00041095,30]
[402035715,1768488671828,-500.0,0.00041095,30]
[402035716,1768488671838,-989.28,0.00041095,30]
[402035717,1768488671850,-1862.32,0.00041095,30]
[402035718,1768488671859,-500.0,0.00041095,30]
[402035719,1768488671869,-3323.94,0.00041095,30]
[402035720,1768488671879,-666.99,0.00041095,30]
[402035721,1768488671889,-561.64,0.00041095,30]
[402035722,1768488671899,-500.0,0.00041095,30]
[402035723,1768488671909,-1018.11,0.00041095,30]